bitfinex/quotes_BTCUSD_20251120
["timestamp","ask_amount","ask_price","bid_price","bid_amount"]
[1763648260919,0.00011105,90980.0,90970.0,0.56750722]
[1763648261080,0.01408238,90980.0,90970.0,0.56750722]
[1763648261494,0.00011105,90980.0,90970.0,0.56750722]
[1763648262485,0.00011105,90980.0,90962.0,0.0109936]
[1763648262486,0.01099203,90975.0,90952.0,0.0038]
[1763648262623,0.01397133,90976.0,90961.0,0.05210249]
[1763648262835,0.21983803,90977.0,90961.0,0.05210249]
[1763648263012,0.22959605,90976.0,90961.0,0.05210249]
[1763648263216,0.21984782,90973.0,90962.0,0.0038]
[1763648263452,0.21984212,90975.0,90962.0,0.0038]
[1763648263694,0.21984544,90973.0,90962.0,0.0038]
[1763648263808,0.01397133,90974.0,90962.0,0.0038]
[1763648263809,0.00165024,90963.0,90962.0,0.0038]
[1763648264461,0.00165024,90963.0,90954.0,0.37510249]
[1763648264677,0.00141461,90955.0,90954.0,0.323]
[1763648264908,0.00141461,90955.0,90954.0,0.0038]
[1763648265133,0.00141461,90955.0,90953.0,0.01091364]
[1763648265357,0.01099239,90972.0,90953.0,0.01091364]
[1763648265590,0.21985875,90968.0,90953.0,0.01091364]
[1763648265799,0.01099311,90966.0,90953.0,0.01091364]
[1763648266016,0.01099311,90966.0,90942.0,0.02962948]
[1763648266017,0.01099372,90961.0,90941.0,0.02962948]
[1763648266222,0.0109942,90957.0,90940.0,0.57842086]
[1763648266420,0.01397133,90956.0,90947.0,0.56750722]
[1763648266661,0.0038,90973.0,90962.0,0.001]
[1763648266872,0.01397133,90972.0,90962.0,0.001]
[1763648267069,0.23381974,90972.0,90962.0,0.001]
[1763648267281,0.0038,90973.0,90945.0,0.01091364]
[1763648267282,0.21987744,90960.0,90945.0,0.01091364]
[1763648267456,0.01397133,90959.0,90945.0,0.01471364]
[1763648267674,0.01099178,90977.0,90950.0,0.323]
[1763648267840,0.21986756,90964.0,90950.0,0.323]
[1763648268093,0.0109936,90962.0,90950.0,0.323]
[1763648268285,0.01397133,90963.0,90950.0,0.89050722]
[1763648268562,0.21986783,90964.0,90950.0,0.89050722]
[1763648268736,0.01397133,90963.0,90950.0,0.89050722]
[1763648269045,0.01397133,90963.0,90951.0,0.03298479]
[1763648269268,0.01724428,90985.0,90950.0,0.89050722]
[1763648269269,0.02379,90984.0,90963.0,0.01099348]
[1763648269486,0.01724428,90985.0,90961.0,0.21987318]
[1763648269487,0.01408238,90980.0,90965.0,0.78737127]
[1763648269680,0.01408238,90980.0,90960.0,0.01479384]
[1763648269681,0.00011105,90980.0,90971.0,0.323]
[1763648269831,0.00011105,90980.0,90972.0,0.05210249]
[1763648269993,0.00011105,90980.0,90971.0,0.323]
[1763648270351,0.0004,91000.0,90976.0,0.0109919]
[1763648270645,0.01123238,90998.0,90980.0,0.56750722]
[1763648270848,0.01123238,90998.0,90981.0,0.0109913]
[1763648271007,0.01123238,90998.0,90980.0,0.57849864]
[1763648271008,0.01123238,90998.0,90980.0,0.56750722]
[1763648271208,0.01123238,90998.0,90980.0,0.57849864]
[1763648271411,0.01123238,90999.0,90981.0,0.0038]
[1763648271650,0.01123238,90999.0,90981.0,0.0147913]
[1763648271916,0.00220968,90982.0,90981.0,0.38989379]
[1763648272749,0.00220968,90982.0,90981.0,0.5987286]
[1763648274350,0.00220968,90982.0,90981.0,0.6187286]
[1763648274760,0.00220968,90982.0,90981.0,0.5949286]
[1763648274942,0.00220968,90982.0,90981.0,0.5987286]
[1763648275137,0.00220968,90982.0,90981.0,0.5949286]
[1763648275340,0.00220968,90982.0,90981.0,0.5987286]
[1763648275647,0.00220968,90982.0,90981.0,0.41530745]
[1763648275855,0.00220968,90982.0,90981.0,0.37890249]
[1763648276464,0.00220968,90982.0,90981.0,0.37710249]
[1763648276668,0.00220968,90982.0,90981.0,0.002]
[1763648276871,0.00220968,90982.0,90981.0,0.02345254]
[1763648277070,0.00220968,90982.0,90981.0,0.34645254]
[1763648277272,0.00220968,90982.0,90981.0,0.37510249]
[1763648277470,0.00220968,90982.0,90974.0,0.219842]
[1763648277715,0.01205246,91000.0,90982.0,0.21982139]
[1763648277919,0.00082008,91000.0,90990.0,0.56750722]
[1763648278093,0.00082008,91000.0,90990.0,0.57849743]
[1763648278275,0.00082008,91000.0,90991.0,0.01099009]
[1763648278481,0.00082008,91000.0,90992.0,0.01098997]
[1763648278722,0.00082008,91000.0,90995.0,0.05210249]
[1763648279060,0.00082008,91000.0,90998.0,0.2197834]
[1763648279333,0.00082008,91000.0,90999.0,0.37510249]
[1763648280253,0.00082008,91000.0,90999.0,0.05210249]
[1763648280405,0.00082008,91000.0,90999.0,0.0038]
[1763648280608,0.00082008,91000.0,90992.0,0.01091364]
[1763648280809,0.00082008,91000.0,90997.0,0.01098937]
[1763648281013,0.00082008,91000.0,90995.0,0.21979137]
[1763648281222,0.00082008,91000.0,90995.0,0.01098961]
[1763648281402,0.00082008,91000.0,90998.0,0.21978435]
[1763648281917,0.00082008,91000.0,90999.0,0.37510249]
[1763648282256,0.00082008,91000.0,90999.0,0.59488512]
[1763648282412,0.00082008,91000.0,90999.0,0.37510249]
[1763648284232,0.0004,91010.0,91009.0,0.54275848]
[1763648284616,9e-05,91027.0,91026.0,0.37510249]
[1763648284826,0.000216,91027.0,91026.0,0.38981613]
[1763648285283,0.000216,91027.0,91026.0,0.60953357]
[1763648285500,0.000216,91027.0,91018.0,0.02943978]
[1763648285718,0.000216,91027.0,91007.0,0.01091364]
[1763648285719,0.015456,91027.0,91009.0,0.34497584]
[1763648285917,0.02644175,91027.0,91009.0,0.323]
[1763648286093,0.01123238,91026.0,91010.0,0.56750722]
[1763648286513,0.000216,91027.0,91011.0,0.05210249]
[1763648286701,0.000216,91027.0,91020.0,0.05210249]
[1763648287022,0.2200113,91070.0,91040.0,0.05210249]
[1763648287199,0.00052595,91070.0,91045.0,0.05210249]
[1763648287422,0.21962105,91066.0,91051.0,0.05210249]
[1763648287625,0.01123238,91069.0,91040.0,0.01091364]
[1763648287626,0.01123238,91065.0,91042.0,0.05210249]
[1763648287838,0.01098164,91061.0,91041.0,0.323]
[1763648288066,0.21963038,91063.0,91042.0,0.05210249]
[1763648288272,0.01123238,91063.0,91042.0,0.05210249]
[1763648288466,0.23086128,91063.0,91042.0,0.06308643]
[1763648288684,0.01123238,91062.0,91050.0,0.56750722]
[1763648288890,0.22013813,91070.0,91043.0,0.01098382]
[1763648288891,0.00052595,91070.0,91059.0,0.05210249]
[1763648289322,0.00052595,91070.0,91050.0,0.05210249]
[1763648289544,0.00052595,91070.0,91057.0,0.05210249]
[1763648289545,0.001,91065.0,91057.0,0.05210249]
[1763648289972,0.001,91065.0,91052.0,0.05210249]
[1763648290624,0.001,91065.0,91055.0,0.37510249]
[1763648290875,0.0004,91080.0,91067.0,0.01098092]
[1763648291104,0.00475008,91101.0,91092.0,0.01097791]
[1763648291323,0.00475008,91101.0,91092.0,0.0630804]
[1763648291324,0.00081966,91100.0,91092.0,0.0630804]
[1763648291568,0.00081966,91100.0,91091.0,0.323]
[1763648291569,0.00081966,91100.0,91094.0,0.05210249]
[1763648291795,0.00081966,91100.0,91094.0,0.06308016]
[1763648292037,0.01097164,91144.0,91099.0,0.37510249]
[1763648292269,0.01123238,91143.0,91135.0,0.323]
[1763648292486,0.00012592,91144.0,91143.0,0.54243539]
[1763648292699,0.01123238,91179.0,91151.0,0.05210249]
[1763648292914,0.0001258,91179.0,91155.0,0.05210249]
[1763648293147,0.0001258,91179.0,91161.0,0.37510249]
[1763648293363,0.0001258,91179.0,91161.0,0.323]
[1763648293570,0.01135818,91179.0,91153.0,0.05210249]
[1763648293784,0.01135818,91179.0,91160.0,0.56750722]
[1763648293983,0.0001258,91179.0,91170.0,0.05210249]
[1763648294111,0.0001258,91179.0,91176.0,0.323]
[1763648294316,0.0001258,91179.0,91173.0,0.05210249]
[1763648294543,0.0001258,91179.0,91175.0,0.05210249]
[1763648294754,0.0001258,91179.0,91150.0,0.00999999]
[1763648294755,0.0001258,91179.0,91161.0,0.323]
[1763648294961,0.0001258,91179.0,91166.0,0.05210249]
[1763648295252,0.0001258,91179.0,91157.0,0.01091364]
[1763648295253,0.0001258,91179.0,91161.0,0.0038]
[1763648295460,0.0001258,91179.0,91161.0,0.3268]
[1763648295590,0.21937675,91168.0,91161.0,0.3268]
[1763648295797,0.01096791,91175.0,91161.0,0.3268]
[1763648295798,0.0001258,91179.0,91162.0,0.05210249]
[1763648296003,0.21936236,91174.0,91162.0,0.05210249]
[1763648296231,0.0001258,91179.0,91161.0,0.3268]
[1763648296232,0.0001258,91179.0,91164.0,0.56750722]
[1763648296408,0.0001258,91179.0,91165.0,0.05210249]
[1763648296591,0.0001258,91179.0,91162.0,0.05210249]
[1763648296787,0.00761534,91166.0,91162.0,0.05210249]
[1763648297069,0.02219993,91178.0,91163.0,0.0038]
[1763648297250,0.0001258,91179.0,91164.0,0.05210249]
[1763648297840,0.0001258,91179.0,91169.0,0.56750722]
[1763648298013,0.0001258,91179.0,91172.0,0.01096827]
[1763648298218,0.0001258,91179.0,91178.0,0.59445364]
[1763648298443,0.0001258,91179.0,91178.0,0.323]
[1763648298869,0.0001258,91179.0,91151.0,0.21941533]
[1763648298870,0.2193704,91170.0,91149.0,0.01091364]
[1763648299071,0.2193704,91170.0,91108.0,0.03925304]
[1763648299072,0.01096912,91165.0,91151.0,0.01091364]
[1763648299441,0.23459936,91175.0,91147.0,0.0038]
[1763648299442,0.01096948,91162.0,91147.0,0.0038]
[1763648299647,0.01097104,91149.0,91138.0,0.01091364]
[1763648299857,0.01123238,91148.0,91125.0,0.01091364]
[1763648300055,0.0109714,91146.0,91129.0,0.0038]
[1763648300190,0.21947598,91127.0,91115.0,0.01091364]
[1763648300390,0.21947598,91127.0,91100.0,0.56750722]
[1763648300391,0.01097393,91125.0,91113.0,0.0038]
[1763648300594,0.21949523,91119.0,91105.0,0.01091364]
[1763648300791,0.21949713,91118.0,91105.0,0.00392592]
[1763648300995,0.01097502,91116.0,91105.0,0.00392592]
[1763648301362,0.01097574,91110.0,91105.0,0.00012592]
[1763648301565,0.2195245,91106.0,91105.0,0.00012592]
[1763648301869,0.2347645,91106.0,91105.0,0.00012592]
[1763648302047,0.3616,91106.0,91105.0,0.00012592]
[1763648303383,0.3626,91106.0,91105.0,0.00012592]
[1763648303992,0.324,91106.0,91105.0,0.00012592]
[1763648304132,0.02004,91106.0,91105.0,0.00012592]
[1763648304334,0.001,91106.0,91105.0,0.00012592]
[1763648305318,0.002,91106.0,91105.0,0.37522841]
[1763648305457,0.001,91106.0,91105.0,0.59475532]
[1763648306099,0.01097213,91140.0,91105.0,0.59475532]
[1763648306100,0.01123238,91140.0,91122.0,0.05210249]
[1763648306318,0.01721286,91145.0,91132.0,0.01097309]
[1763648306657,0.01123238,91154.0,91139.0,0.05210249]
[1763648306831,0.01123238,91157.0,91139.0,0.05590249]
[1763648307050,0.01123238,91171.0,91145.0,0.23039981]
[1763648307244,0.01123238,91171.0,91151.0,0.0109708]
[1763648307663,0.21938608,91164.0,91141.0,0.323]
[1763648307861,0.23036166,91161.0,91142.0,0.05210249]
[1763648308064,0.01123238,91160.0,91142.0,0.05210249]
[1763648308292,0.01123238,91165.0,91144.0,0.05210249]
[1763648308523,0.0001258,91165.0,91153.0,0.01097056]
[1763648308722,0.01096455,91203.0,91175.0,0.33396791]
[1763648308931,0.00041951,91203.0,91190.0,0.71026248]
[1763648309139,0.00041951,91203.0,91191.0,0.05210249]
[1763648309352,0.00041951,91203.0,91201.0,0.05210249]
[1763648309562,0.00041951,91203.0,91201.0,0.27139656]
[1763648310053,0.00041951,91203.0,91202.0,0.37510249]
[1763648310280,0.01197,91283.0,91202.0,0.37510249]
[1763648310281,0.00999998,91280.0,91238.0,0.01096034]
[1763648310499,0.00052582,91250.0,91241.0,0.05210249]
[1763648310693,0.00052582,91250.0,91241.0,0.37510249]
[1763648311105,0.00052582,91250.0,91248.0,0.05210249]
[1763648311325,0.00052582,91250.0,91249.0,0.323]
[1763648311534,0.00052582,91250.0,91249.0,0.40980453]
[1763648311734,0.00052582,91250.0,91249.0,0.44618047]
[1763648312069,0.00052582,91250.0,91249.0,0.41221506]
[1763648312304,0.00052582,91250.0,91249.0,0.05590249]
[1763648312711,0.00052582,91250.0,91249.0,0.05210249]
[1763648313028,0.00052582,91250.0,91242.0,0.01095986]
[1763648313029,0.00052582,91250.0,91242.0,0.05210249]
[1763648313235,0.00052582,91250.0,91234.0,0.01096082]
[1763648313236,0.00052582,91250.0,91220.0,0.01091364]
[1763648313442,0.0038,91249.0,91217.0,0.01091364]
[1763648313680,0.00052582,91250.0,91243.0,0.23015278]
[1763648313824,0.00052582,91250.0,91236.0,0.05210249]
[1763648314034,0.00052582,91250.0,91226.0,0.01091364]
[1763648314236,0.0109595,91245.0,91200.0,0.52980858]
[1763648314440,0.21919776,91242.0,91215.0,0.01091364]
[1763648314623,0.00052582,91250.0,91221.0,0.01096238]
[1763648314822,0.00052582,91250.0,91217.0,0.01096286]
[1763648314823,0.0109595,91245.0,91217.0,0.01096286]
[1763648315108,0.0109595,91245.0,91215.0,0.01091364]
[1763648315109,0.00925622,91222.0,91215.0,0.01091364]
[1763648315234,0.01123238,91238.0,91215.0,0.01091364]
[1763648315431,0.21919729,91242.0,91215.0,0.01091364]
[1763648315667,0.21923665,91226.0,91215.0,0.01091364]
[1763648316037,0.01096178,91226.0,91215.0,0.01191364]
[1763648316236,0.01123238,91225.0,91206.0,0.01096419]
[1763648316408,0.00012577,91226.0,91216.0,0.06306547]
[1763648316707,0.00012577,91226.0,91224.0,0.05210249]
[1763648316911,0.00012577,91226.0,91225.0,0.59434063]
[1763648317070,0.00012577,91226.0,91225.0,0.37510249]
[1763648317685,0.00012577,91226.0,91225.0,0.05210249]
[1763648317890,0.00012577,91226.0,91217.0,0.05210249]
[1763648318092,0.00012577,91226.0,91215.0,0.001]
[1763648318093,0.01096226,91222.0,91215.0,0.001]
[1763648318293,0.21925737,91217.0,91215.0,0.001]
[1763648318499,0.01096274,91218.0,91215.0,0.001]
[1763648318500,0.01123238,91216.0,91215.0,0.001]
[1763648318700,0.01123238,91216.0,91182.0,0.01476707]
[1763648318701,0.01123238,91216.0,91205.0,0.01096431]
[1763648318903,0.01095926,91247.0,91210.0,0.01096371]
[1763648319112,0.21921186,91236.0,91205.0,0.0038]
[1763648319379,0.21922252,91232.0,91208.0,0.01096395]
[1763648319667,0.0109595,91245.0,91215.0,0.3339631]
[1763648319793,0.01096094,91233.0,91216.0,0.05210249]
[1763648319998,0.23016851,91238.0,91216.0,0.05210249]
[1763648320220,0.01123238,91237.0,91223.0,0.01096214]
[1763648320428,0.00999999,91270.0,91223.0,0.01096214]
[1763648320429,0.0038,91244.0,91224.0,0.05210249]
[1763648320605,0.01163238,91250.0,91224.0,0.05210249]
[1763648320951,0.21919022,91245.0,91224.0,0.05210249]
[1763648321123,0.0004,91250.0,91249.0,0.59428297]
[1763648321332,0.0004,91250.0,91249.0,0.62516801]
[1763648321532,0.0004,91250.0,91249.0,0.10871808]
[1763648321874,0.0004,91250.0,91234.0,0.01096082]
[1763648322072,0.0004,91250.0,91235.0,0.05210249]
[1763648322280,0.0004,91250.0,91249.0,0.05310249]
[1763648322492,0.0004,91250.0,91249.0,0.05510249]
[1763648322636,0.0004,91250.0,91249.0,0.43654377]
[1763648322977,0.0004,91250.0,91249.0,0.43454377]
[1763648323769,0.0004,91250.0,91249.0,0.40816969]
[1763648324163,0.0004,91250.0,91249.0,0.43753709]
[1763648324367,0.0004,91250.0,91249.0,0.0320672]
[1763648324597,0.0004,91250.0,91249.0,0.08416969]
[1763648324735,0.0004,91250.0,91249.0,0.40716969]
[1763648324975,0.0004,91250.0,91249.0,0.43753709]
[1763648325175,0.0004,91250.0,91249.0,0.43853709]
[1763648325600,0.0004,91250.0,91249.0,0.37710249]
[1763648325818,0.0004,91250.0,91249.0,0.62467145]
[1763648326026,0.0004,91250.0,91249.0,0.37610249]
[1763648326201,0.0104759,91250.0,91249.0,0.37610249]
[1763648326582,0.0104759,91250.0,91249.0,0.37810249]
[1763648327189,0.0104759,91250.0,91249.0,0.40464832]
[1763648327499,0.0104759,91250.0,91249.0,0.002]
[1763648327700,0.0104759,91250.0,91249.0,0.003]
[1763648328512,0.0104759,91250.0,91244.0,0.02191924]
[1763648328513,0.0104759,91250.0,91246.0,0.323]
[1763648328717,0.0004,91250.0,91249.0,0.05310249]
[1763648328925,0.0004,91250.0,91249.0,0.01810338]
[1763648329127,0.0004,91250.0,91249.0,0.05310249]
[1763648329326,0.0004,91250.0,91249.0,0.07502053]
[1763648329535,0.0004,91340.0,91294.0,0.01095362]
[1763648329536,0.00473791,91297.0,91294.0,0.01095362]
[1763648329747,0.00486363,91297.0,91296.0,0.37510249]
[1763648329961,0.00486363,91297.0,91294.0,0.01091364]
[1763648329962,0.00486363,91297.0,91294.0,0.01479362]
[1763648330389,0.00486363,91297.0,91296.0,0.21906764]
[1763648331432,0.00486363,91297.0,91296.0,0.25206764]
[1763648331606,0.0024,91333.0,91296.0,0.25206764]
[1763648331607,1e-08,91300.0,91299.0,0.21906044]
[1763648331820,1e-08,91300.0,91299.0,0.60416293]
[1763648332226,1e-08,91300.0,91294.0,0.23386581]
[1763648332227,0.0024,91333.0,91332.0,0.59408378]
[1763648332424,0.00252558,91333.0,91332.0,0.59792378]
[1763648333074,0.00252558,91333.0,91332.0,0.59408378]
[1763648333282,0.00252558,91333.0,91332.0,0.323]
[1763648333674,0.00252558,91333.0,91332.0,0.37510249]
[1763648334124,0.0004,91340.0,91339.0,0.271067]
[1763648334487,0.0004,91340.0,91339.0,0.37510249]
[1763648334693,0.01310719,91340.0,91330.0,0.0109493]
[1763648334924,0.0004,91340.0,91328.0,0.22993858]
[1763648335140,0.0004,91340.0,91328.0,0.00012558]
[1763648335347,0.0004,91340.0,91337.0,0.33394846]
[1763648335573,0.0004,91340.0,91339.0,0.271067]
[1763648335772,0.0004,91340.0,91339.0,0.594067]
[1763648336199,0.0004,91350.0,91349.0,0.21894054]
[1763648336440,1e-08,91350.0,91349.0,0.59404303]
[1763648337054,1e-08,91350.0,91349.0,0.60404303]
[1763648337189,1e-08,91350.0,91349.0,0.59404303]
[1763648337369,1e-08,91350.0,91349.0,0.60404303]
[1763648337610,0.01314,91407.0,91400.0,0.00999999]
[1763648337809,0.01158,91429.0,91400.0,0.03094089]
[1763648338009,0.00384,91428.0,91410.0,0.00999999]
[1763648338216,0.01093708,91432.0,91410.0,0.00999999]
[1763648338217,0.00384,91432.0,91420.0,0.00999999]
[1763648338453,0.00384,91432.0,91410.0,0.00999999]
[1763648338454,0.0109378,91426.0,91410.0,0.01999998]
[1763648338657,0.01158,91437.0,91400.0,0.00999999]
[1763648338860,0.0109396,91411.0,91400.0,0.01999998]
[1763648339066,0.00041902,91426.0,91400.0,0.01999998]
[1763648339397,0.00384,91425.0,91420.0,0.01999998]
[1763648339524,0.00384,91425.0,91410.0,0.00999999]
[1763648339723,0.00384,91425.0,91400.0,0.01999998]
[1763648339724,0.02388,91424.0,91400.0,0.01999998]
[1763648339925,0.0109402,91406.0,91400.0,0.01999998]
[1763648340130,0.00384,91405.0,91400.0,0.00999999]
[1763648340365,0.01094259,91386.0,91380.0,0.00999999]
[1763648340576,0.01094283,91384.0,91370.0,0.01999998]
[1763648340876,0.21888783,91371.0,91370.0,0.01999998]
[1763648341056,0.21888783,91371.0,91323.0,0.21900101]
[1763648341057,0.01094594,91358.0,91350.0,0.00999999]
[1763648341191,0.21889769,91367.0,91350.0,0.01999998]
[1763648341395,0.01094546,91362.0,91350.0,0.01999998]
[1763648341681,0.01094726,91347.0,91313.0,0.21902542]
[1763648341975,0.00384,91361.0,91300.0,0.51980858]
[1763648341976,0.01094499,91366.0,91350.0,0.00999999]
[1763648342147,0.02252439,91371.0,91340.0,0.00999999]
[1763648342148,0.01094678,91351.0,91340.0,0.00999999]
[1763648342347,0.0109457,91360.0,91350.0,0.00999999]
[1763648342559,0.02388,91365.0,91350.0,0.00999999]
[1763648342560,0.00384,91359.0,91350.0,0.01999998]
[1763648342773,0.01094139,91396.0,91365.0,0.323]
[1763648343094,0.00384,91377.0,91365.0,0.323]
[1763648343270,0.01138,91387.0,91360.0,0.01999998]
[1763648343271,0.01094403,91374.0,91360.0,0.01999998]
[1763648343466,0.01094403,91374.0,91340.0,0.0109481]
[1763648343467,0.01094534,91363.0,91350.0,0.00999999]
[1763648343685,0.01094966,91327.0,91288.0,0.02907579]
[1763648343878,0.01095098,91316.0,91279.0,0.01095542]
[1763648344050,0.0109529,91300.0,91250.0,0.52980857]
[1763648344376,0.01095122,91314.0,91279.0,0.01095542]
[1763648344610,0.01095122,91314.0,91280.0,0.0219106]
[1763648344817,0.01,91342.0,91290.0,0.51980858]
[1763648345026,0.00384,91344.0,91326.0,0.01094978]
[1763648345237,0.02442,91362.0,91334.0,0.01094882]
[1763648345445,0.00999999,91390.0,91311.0,0.37510249]
[1763648345446,0.21888303,91373.0,91346.0,0.01094738]
[1763648345647,0.01094511,91365.0,91347.0,0.02189453]
[1763648345855,0.01094511,91365.0,91339.0,0.323]
[1763648346063,0.01094546,91362.0,91339.0,0.323]
[1763648346297,0.03536511,91365.0,91342.0,0.01094786]
[1763648346298,0.02454555,91365.0,91342.0,0.01094786]
[1763648346562,0.0109457,91360.0,91327.0,0.33394966]
[1763648346843,0.00012555,91365.0,91357.0,0.323]
[1763648347051,0.00012555,91365.0,91358.0,0.02189189]
[1763648347266,0.01323282,91358.0,91350.0,0.323]
[1763648347485,0.01094642,91354.0,91319.0,0.01095062]
[1763648347746,0.01094594,91358.0,91327.0,0.323]
[1763648347949,0.01094618,91356.0,91331.0,0.01094918]
[1763648348160,0.21892616,91355.0,91329.0,0.01094942]
[1763648348372,0.01094618,91356.0,91319.0,0.05210249]
[1763648348578,0.01094606,91357.0,91331.0,0.01094918]
[1763648348803,0.00012555,91365.0,91350.0,0.0109469]
[1763648349026,0.00012555,91365.0,91359.0,0.01094582]
[1763648349242,0.00112555,91365.0,91360.0,0.02189141]
[1763648349463,0.00112555,91365.0,91354.0,0.01759291]
[1763648349689,0.00012555,91365.0,91355.0,0.02189261]
[1763648349914,0.22985772,91361.0,91347.0,0.02189453]
[1763648350128,0.02826,91364.0,91337.0,0.01094846]
[1763648350378,0.01094534,91363.0,91338.0,0.03284503]
[1763648350610,0.01094606,91357.0,91338.0,0.02189669]
[1763648350823,0.01094702,91349.0,91338.0,0.02189669]
[1763648351023,0.01094558,91361.0,91335.0,0.22992245]
[1763648351144,0.02232618,91356.0,91336.0,0.02189717]
[1763648351546,0.22987977,91353.0,91336.0,0.02189717]
[1763648351754,0.2189454,91347.0,91317.0,0.21901726]
[1763648351959,0.2189454,91347.0,91290.0,0.51980858]
[1763648351960,0.01094858,91336.0,91313.0,0.323]
[1763648352159,0.00384,91335.0,91323.0,0.01095014]
[1763648352465,0.00384,91335.0,91329.0,0.01094942]
[1763648352632,0.00384,91339.0,91330.0,0.01918699]
[1763648352870,0.23196538,91351.0,91331.0,0.01427411]
[1763648352871,0.01094702,91349.0,91331.0,0.01427411]
[1763648353057,0.00384,91338.0,91325.0,0.323]
[1763648353260,0.01094858,91336.0,91325.0,0.323]
[1763648353464,0.01094942,91329.0,91306.0,0.01095218]
[1763648353616,0.01094894,91333.0,91306.0,0.00012558]
[1763648353815,0.01094954,91328.0,91306.0,0.00012558]
[1763648354024,0.02233206,91307.0,91286.0,0.02907579]
[1763648354237,0.01138,91287.0,91286.0,0.00041883]
[1763648354642,0.0358,91287.0,91286.0,0.00041883]
[1763648354846,0.01095482,91284.0,91255.0,0.0109583]
[1763648355052,0.01095614,91273.0,91255.0,0.00012572]
[1763648355249,0.02442,91283.0,91256.0,0.21916367]
[1763648355487,0.00384,91282.0,91262.0,0.01095746]
[1763648355689,0.23006145,91280.0,91255.0,0.01108402]
[1763648355931,0.02442,91281.0,91257.0,0.01095806]
[1763648356108,0.01095542,91279.0,91255.0,0.00012572]
[1763648356306,0.00384,91280.0,91255.0,0.21928997]
[1763648356533,0.01095566,91277.0,91255.0,0.00012572]
[1763648356776,0.0109565,91270.0,91255.0,0.00012572]
[1763648357011,0.01095686,91267.0,91255.0,0.00012572]
[1763648357370,0.01095758,91261.0,91255.0,0.00012572]
[1763648357568,0.02442,91268.0,91255.0,0.00012572]
[1763648357748,0.0109571,91265.0,91255.0,0.00012572]
[1763648357947,0.02442,91268.0,91255.0,0.00012572]
[1763648358150,0.21914008,91266.0,91255.0,0.00012572]
[1763648358352,0.01095722,91264.0,91255.0,0.00012572]
[1763648358584,0.01095794,91258.0,91255.0,0.00012572]
[1763648358723,0.02442,91263.0,91240.0,0.0004]
[1763648358923,0.00384,91262.0,91241.0,0.23015781]
[1763648359285,0.25465052,91263.0,91242.0,0.01655848]
[1763648359462,0.25465052,91263.0,91241.0,0.01095998]
[1763648359463,0.00384,91262.0,91241.0,0.01095998]
[1763648359669,0.00384,91261.0,91245.0,0.23014859]
[1763648359866,0.00012544,91263.0,91246.0,0.02191876]
[1763648360046,0.00492218,91268.0,91248.0,0.01095914]
[1763648360237,0.00384,91262.0,91252.0,0.01095866]
[1763648360434,0.00384,91262.0,91255.0,0.0109583]
[1763648360674,0.01095434,91288.0,91259.0,0.01095782]
[1763648361019,0.01095434,91288.0,91249.0,0.21917992]
[1763648361020,0.0109565,91270.0,91232.0,0.01096106]
[1763648361193,0.02442,91284.0,91249.0,0.01095902]
[1763648361396,0.01095566,91277.0,91255.0,0.0109583]
[1763648361635,0.01095614,91273.0,91256.0,0.02191636]
[1763648361843,0.0109571,91265.0,91242.0,0.01095986]
[1763648362049,0.01095806,91257.0,91240.0,0.0004]
[1763648362222,0.0109577,91260.0,91240.0,0.0004]
[1763648362451,0.01138,91259.0,91240.0,0.0004]
[1763648362563,0.01138,91259.0,91241.0,0.23015747]
[1763648362770,0.00384,91258.0,91242.0,0.02191972]
[1763648363219,0.01138,91259.0,91243.0,0.21919266]
[1763648363447,0.01025148,91256.0,91244.0,0.02191924]
[1763648363651,0.01479794,91258.0,91244.0,0.02191924]
[1763648363850,0.01004663,91249.0,91244.0,0.02191924]
[1763648364087,0.01004663,91249.0,91248.0,0.02204372]
[1763648364416,0.01004663,91249.0,91248.0,0.00012544]
[1763648364823,0.01004663,91249.0,91248.0,0.21930832]
[1763648365015,0.01004663,91249.0,91248.0,0.00012544]
[1763648365542,0.01004663,91249.0,91248.0,0.02204372]
[1763648365767,0.01004663,91249.0,91248.0,0.39714621]
[1763648365968,0.01004663,91249.0,91248.0,0.37522793]
[1763648366202,0.01004663,91249.0,91248.0,0.37622793]
[1763648366803,0.01004663,91249.0,91248.0,0.37522793]
[1763648367125,0.01004663,91249.0,91248.0,0.37622793]
[1763648367536,0.01004663,91249.0,91248.0,0.05322793]
[1763648367777,0.01004663,91249.0,91248.0,0.27241081]
[1763648368013,0.01004663,91249.0,91248.0,0.32412544]
[1763648368222,0.01004663,91249.0,91248.0,0.00112544]
[1763648368422,0.01004663,91249.0,91248.0,0.54330832]
[1763648368553,0.01004663,91249.0,91248.0,0.32412544]
[1763648369101,0.01004663,91249.0,91248.0,0.00112544]
[1763648369324,0.01004663,91249.0,91248.0,0.01202296]
[1763648369492,0.01004663,91249.0,91248.0,0.01102296]
[1763648369699,0.01004663,91249.0,91248.0,0.34504372]
[1763648369876,0.01004663,91249.0,91248.0,0.37622793]
[1763648370545,0.01004663,91249.0,91248.0,0.37522793]
[1763648371794,0.01004663,91249.0,91248.0,0.05210249]
[1763648372052,0.01004663,91249.0,91248.0,0.05310249]
[1763648372592,0.01004663,91249.0,91248.0,0.05210249]
[1763648373335,0.01004663,91249.0,91248.0,0.05310249]
[1763648373988,0.01004663,91249.0,91248.0,0.37610249]
[1763648375929,0.01004663,91249.0,91248.0,0.38610249]
[1763648376332,0.01004663,91249.0,91248.0,0.37610249]
[1763648376513,0.01004663,91249.0,91248.0,0.37510249]
[1763648376913,0.01004663,91249.0,91248.0,0.37610249]
[1763648378557,0.01004663,91249.0,91248.0,0.37510249]
[1763648378762,0.01004663,91249.0,91248.0,0.05410249]
[1763648379072,0.01004663,91249.0,91248.0,0.54418288]
[1763648379221,0.01004663,91249.0,91248.0,0.57352308]
[1763648379427,0.01004663,91249.0,91248.0,0.3523402]
[1763648379628,0.01004663,91249.0,91248.0,0.001]
[1763648380280,0.01004663,91249.0,91248.0,0.323]
[1763648381539,0.01004663,91249.0,91247.0,0.323]
[1763648381748,0.01001737,91248.0,91247.0,0.33395926]
[1763648382039,0.010143,91248.0,91247.0,0.323]
[1763648382466,0.010143,91248.0,91245.0,0.03909004]
[1763648382677,0.01245,91247.0,91242.0,0.02949176]
[1763648382938,0.00012563,91248.0,91243.0,0.02100411]
[1763648383313,0.00995883,91246.0,91244.0,0.02949176]
[1763648383526,0.00012563,91248.0,91245.0,0.021919]
[1763648383723,0.00012563,91248.0,91245.0,0.022919]
[1763648384295,0.00012563,91248.0,91245.0,0.05241076]
[1763648384865,0.00012563,91248.0,91245.0,0.001]
[1763648384866,0.01598,91246.0,91245.0,0.001]
[1763648385009,0.00012563,91248.0,91244.0,0.051411]
[1763648385210,0.00012563,91248.0,91246.0,0.02949176]
[1763648385543,0.00012563,91248.0,91247.0,0.02191852]